bitfinex/quotes_BTCUSD_20220304
["timestamp","ask_amount","ask_price","bid_price","bid_amount"]
[1646412474447,0.7514,40829.0,40814.0,0.490297]
[1646412474747,1.03024058,40821.0,40814.0,0.490297]
[1646412474947,0.0491,40820.0,40816.0,0.06131]
[1646412475198,0.2491,40820.0,40819.0,0.122607]
[1646412475396,0.35456324,40820.0,40819.0,0.122607]
[1646412475598,0.25456324,40820.0,40819.0,0.122607]
[1646412476199,0.15456324,40820.0,40819.0,0.122607]
[1646412476395,0.15456324,40820.0,40819.0,0.172607]
[1646412477095,0.15456065,40820.0,40819.0,0.172607]
[1646412477296,0.15455936,40820.0,40819.0,0.172607]
[1646412477696,0.15455677,40820.0,40819.0,0.172607]
[1646412477897,0.0491,40820.0,40819.0,0.172607]
[1646412478098,0.0491,40820.0,40819.0,0.472607]
[1646412478296,0.0491,40820.0,40819.0,0.522607]
[1646412478499,0.005,40826.0,40819.0,0.522607]
[1646412478697,0.0491,40825.0,40821.0,0.31398395]
[1646412478952,0.0491,40825.0,40822.0,0.53567925]
[1646412478953,0.0491,40824.0,40822.0,0.53567925]
[1646412479153,0.1,40829.0,40823.0,0.59343585]
[1646412479352,0.1491,40838.0,40825.0,0.122552]
[1646412479553,0.1491,40838.0,40826.0,0.3]
[1646412479751,0.1491,40838.0,40830.0,0.18934939]
[1646412479952,0.1491,40838.0,40831.0,0.061277]
[1646412480355,0.1341,40838.0,40832.0,0.25924967]
[1646412480554,0.061278,40837.0,40832.0,0.38180267]
[1646412481156,0.061278,40837.0,40832.0,0.122553]
[1646412481554,0.061278,40837.0,40833.0,0.28150623]
[1646412481753,0.061278,40837.0,40833.0,0.34278323]
[1646412481956,0.061278,40837.0,40833.0,0.061277]
[1646412482998,0.061278,40837.0,40834.0,0.24559041]
[1646412483197,0.085,40838.0,40834.0,0.24559041]
[1646412483703,0.05276505,40846.0,40835.0,1.4]
[1646412483901,0.05276505,40846.0,40837.0,0.15]
[1646412484102,0.05276505,40846.0,40839.0,0.02454]
[1646412484300,0.05276505,40846.0,40844.0,0.25748141]
[1646412484501,0.00019905,40851.0,40840.0,1.45]
[1646412484705,0.31567767,40852.0,40840.0,0.05]
[1646412484706,1.06707767,40852.0,40840.0,0.05]
[1646412485003,0.001,40847.0,40843.0,0.061252]
[1646412485204,0.001,40847.0,40844.0,0.061276]
[1646412486003,0.001,40847.0,40838.0,0.1]
[1646412486004,0.7514,40845.0,40833.0,0.09574194]
[1646412486206,0.7514,40845.0,40818.0,0.4281]
[1646412486207,0.7514,40835.0,40831.0,0.00019362]
[1646412486482,0.7514,40833.0,40831.0,0.00019362]
[1646412486673,0.0491,40832.0,40831.0,0.00019362]
[1646412487069,0.0491,40832.0,40830.0,0.190489]
[1646412487269,0.0491,40832.0,40829.0,0.2504492]
[1646412487270,0.0491,40832.0,40829.0,0.2506428]
[1646412487670,0.0491,40832.0,40831.0,0.061293]
[1646412488271,0.0491,40832.0,40831.0,0.183857]
[1646412488471,0.0491,40832.0,40831.0,0.233857]
[1646412488775,0.0491,40832.0,40831.0,0.51464095]
[1646412489372,0.004,40833.0,40831.0,0.233857]
[1646412490197,0.061279,40835.0,40831.0,0.233857]
[1646412491000,0.061279,40835.0,40831.0,0.23405111]
[1646412491204,0.004,40836.0,40832.0,0.172571]
[1646412492003,0.004,40836.0,40833.0,0.21299534]
[1646412492600,0.061275,40838.0,40833.0,0.27426134]
[1646412492802,0.005,40837.0,40833.0,0.27426134]
[1646412494057,0.061275,40838.0,40836.0,0.27769188]
[1646412494264,0.1,40840.0,40836.0,0.38896288]
[1646412494452,0.1,40840.0,40837.0,0.061266]
[1646412495053,0.1,40841.0,40839.0,0.21409627]
[1646412495255,0.1,40841.0,40837.0,0.061266]
[1646412497999,0.09972942,40841.0,40837.0,0.061266]
[1646412498303,0.19972942,40841.0,40837.0,0.061266]
[1646412498600,0.19972942,40841.0,40837.0,0.26951163]
[1646412499201,0.19972942,40841.0,40837.0,0.31951163]
[1646412499398,0.09972942,40841.0,40837.0,0.31951163]
[1646412499997,0.09972942,40841.0,40838.0,0.17328479]
[1646412500198,0.09972942,40841.0,40837.0,0.44205763]
[1646412501300,0.09972942,40841.0,40838.0,0.172539]
[1646412501783,0.09972942,40841.0,40838.0,0.222539]
[1646412502478,0.09972942,40841.0,40840.0,0.19212023]
[1646412502683,0.09972942,40841.0,40840.0,0.59212023]
[1646412502879,0.54542516,40850.0,40842.0,0.122518]
[1646412502880,0.005,40846.0,40842.0,0.122518]
[1646412503080,0.005,40846.0,40843.0,0.3]
[1646412503279,0.005,40846.0,40844.0,0.28067207]
[1646412503680,0.005,40846.0,40845.0,0.33211405]
[1646412504287,0.245,40850.0,40846.0,0.061248]
[1646412504481,0.245,40850.0,40846.0,0.122497]
[1646412504683,0.245,40850.0,40846.0,0.172497]
[1646412505082,0.245,40850.0,40846.0,0.111248]
[1646412505083,0.306257,40850.0,40846.0,0.111248]
[1646412505324,0.306257,40850.0,40847.0,0.05]
[1646412505524,0.306257,40850.0,40846.0,0.111248]
[1646412505525,0.1,40849.0,40846.0,0.061248]
[1646412505724,0.095,40849.0,40846.0,0.061248]
[1646412508727,0.095,40849.0,40847.0,0.3]
[1646412508951,0.245,40850.0,40847.0,0.3]
[1646412509153,0.245,40850.0,40847.0,0.4]
[1646412509352,0.245,40850.0,40848.0,0.368235]
[1646412509653,0.245,40850.0,40849.0,0.668235]
[1646412509849,0.145,40850.0,40849.0,0.718235]
[1646412510249,0.145,40850.0,40849.0,0.05]
[1646412510449,0.145,40850.0,40847.0,0.111244]
[1646412510650,0.145,40850.0,40847.0,0.061244]
[1646412510849,0.145,40850.0,40848.0,0.368235]
[1646412511049,0.145,40850.0,40847.0,0.061244]
[1646412511252,0.145,40850.0,40848.0,0.05]
[1646412512049,0.145,40850.0,40847.0,0.111244]
[1646412512253,0.145,40850.0,40847.0,0.061244]
[1646412513423,0.145,40850.0,40849.0,0.368235]
[1646412513621,0.145,40850.0,40848.0,0.368235]
[1646412513921,0.145,40850.0,40848.0,0.418235]
[1646412514623,0.145,40850.0,40849.0,0.368235]
[1646412514827,0.145,40850.0,40848.0,0.35]
[1646412515024,0.145,40850.0,40849.0,0.368235]
[1646412515223,0.145,40850.0,40848.0,0.4]
[1646412515726,0.145,40850.0,40849.0,0.368235]
[1646412515925,0.145,40850.0,40849.0,0.3]
[1646412516124,0.145,40850.0,40849.0,0.668235]
[1646412516552,0.145,40850.0,40849.0,0.368235]
[1646412516752,0.145,40850.0,40848.0,0.1]
[1646412517155,0.145,40850.0,40848.0,0.05]
[1646412518355,0.145,40850.0,40848.0,0.1]
[1646412519358,0.145,40850.0,40849.0,0.368235]
[1646412519656,0.145,40850.0,40848.0,0.1]
[1646412520302,0.145,40850.0,40847.0,0.351244]
[1646412520303,0.095,40850.0,40847.0,0.351244]
[1646412522200,0.095,40850.0,40847.0,0.401244]
[1646412523202,0.095,40850.0,40847.0,0.52373]
[1646412524351,0.095,40850.0,40848.0,0.3]
[1646412525054,0.095,40850.0,40848.0,0.32454]
[1646412525352,0.095,40850.0,40848.0,0.3]
[1646412525952,0.095,40850.0,40849.0,0.368235]
[1646412526152,0.095,40850.0,40849.0,0.692775]
[1646412526354,0.095,40850.0,40849.0,0.792775]
[1646412526751,0.35043499,40857.0,40851.0,0.061237]
[1646412526951,0.35043499,40857.0,40855.0,0.3026115]
[1646412527151,0.35043499,40857.0,40855.0,0.27235036]
[1646412527351,0.00077581,40858.0,40855.0,0.32235036]
[1646412527819,0.00077581,40858.0,40855.0,0.53936295]
[1646412528016,0.1,40860.0,40856.0,0.061236]
[1646412528217,0.00019411,40859.0,40858.0,0.27412691]
[1646412528420,0.00019411,40859.0,40856.0,0.111236]
[1646412529218,0.1,40860.0,40856.0,0.111236]
[1646412529418,0.1001941,40860.0,40857.0,0.28916381]
[1646412529620,0.1001941,40860.0,40858.0,0.3]
[1646412529819,0.1001941,40860.0,40858.0,0.583675]
[1646412530017,0.1001941,40860.0,40859.0,0.3]
[1646412530218,0.1001941,40860.0,40859.0,0.35]
[1646412530423,0.1,40860.0,40859.0,0.35]
[1646412530620,0.1,40860.0,40858.0,0.283675]
[1646412531118,0.45036465,40860.0,40858.0,0.283675]
[1646412531561,0.35036465,40859.0,40858.0,0.283675]
[1646412531759,0.45036465,40860.0,40858.0,0.283675]
[1646412531960,0.45036465,40860.0,40858.0,0.48944131]
[1646412532460,0.45036465,40860.0,40858.0,0.283675]
[1646412532461,0.02502582,40859.0,40858.0,0.283675]
[1646412532659,0.02502582,40859.0,40858.0,0.183675]
[1646412532859,0.02502582,40859.0,40857.0,0.122486]
[1646412533458,0.02502582,40859.0,40857.0,0.061242]
[1646412534059,0.02502582,40859.0,40857.0,0.351242]
[1646412534259,0.02502582,40859.0,40857.0,0.401242]
[1646412535421,0.02502582,40859.0,40857.0,0.301242]
[1646412535626,0.55734451,40858.0,40857.0,0.15899541]
[1646412535821,0.55734451,40858.0,40844.0,0.1655]
[1646412535822,0.061271,40854.0,40844.0,0.1655]
[1646412536021,0.35055212,40846.0,40841.0,0.3]
[1646412536221,0.1,40845.0,40836.0,0.4655]
[1646412536421,0.1,40846.0,40842.0,0.24023986]
[1646412536622,0.05080649,40845.0,40843.0,0.3]
[1646412536821,0.04917123,40851.0,40846.0,0.29631122]
[1646412536822,7.123e-05,40851.0,40846.0,0.29631122]
[1646412537021,7.123e-05,40851.0,40846.0,0.34631122]
[1646412537221,7.123e-05,40851.0,40846.0,0.1]
[1646412537422,7.123e-05,40851.0,40846.0,0.05]
[1646412537622,0.40063099,40852.0,40843.0,0.222516]
[1646412537822,7.124e-05,40851.0,40843.0,0.222516]
[1646412538022,0.10007124,40851.0,40843.0,0.222516]
[1646412538227,0.07507124,40851.0,40847.0,0.061263]
[1646412538423,0.13633124,40851.0,40847.0,0.061263]
[1646412539249,0.06126,40851.0,40847.0,0.061263]
[1646412539451,0.0491,40850.0,40847.0,0.061263]
[1646412539652,0.0491,40852.0,40850.0,0.29578455]
[1646412539851,0.0491,40852.0,40850.0,0.40703155]
[1646412540051,0.0491,40852.0,40850.0,0.45703155]
[1646412540453,0.000218,40853.0,40850.0,0.45703155]
[1646412541151,0.000218,40853.0,40850.0,0.3711348]
[1646412541352,0.02504315,40854.0,40850.0,0.05]
[1646412541556,0.02504315,40854.0,40846.0,0.122489]
[1646412541557,0.02526115,40854.0,40849.0,0.05]
[1646412541756,0.02526115,40854.0,40846.0,0.122489]
[1646412541953,0.35064549,40847.0,40846.0,0.111254]
[1646412542154,0.35064549,40847.0,40846.0,0.32268005]
[1646412542354,0.35064549,40847.0,40846.0,0.37268005]
[1646412542803,0.35064549,40847.0,40846.0,0.111254]
[1646412543600,0.02505031,40847.0,40846.0,0.111254]
[1646412543999,0.02505031,40847.0,40846.0,0.33212378]
[1646412544298,0.02505031,40847.0,40846.0,0.351254]
[1646412544503,0.02505031,40852.0,40846.0,0.351254]
[1646412544700,0.02505108,40851.0,40847.0,0.122497]
[1646412544900,0.02505108,40850.0,40847.0,0.122497]
[1646412545303,0.02505108,40850.0,40846.0,0.24]
[1646412545304,0.07415108,40849.0,40846.0,0.24]
[1646412545502,0.02505108,40848.0,40846.0,0.24]
[1646412545700,0.02505108,40848.0,40846.0,0.301262]
[1646412545701,0.0491,40847.0,40846.0,0.301262]
[1646412545907,0.07415108,40847.0,40846.0,0.301262]
[1646412546300,0.07415108,40847.0,40846.0,0.351262]
[1646412547149,0.07415108,40847.0,40846.0,0.301262]
[1646412547349,0.07415108,40847.0,40846.0,0.24]
[1646412547951,0.07415108,40847.0,40846.0,0.23]
[1646412549651,0.77376562,40847.0,40846.0,0.23]
[1646412549849,0.87376562,40847.0,40846.0,0.23]
[1646412550315,0.31415108,40847.0,40846.0,0.23]
[1646412550815,0.61415108,40847.0,40846.0,0.23]
[1646412551011,0.74061106,40847.0,40846.0,0.16582709]
[1646412551213,0.4491,40847.0,40846.0,0.16582709]
[1646412551410,0.5891,40847.0,40846.0,0.16582709]
[1646412551610,0.71555998,40847.0,40846.0,0.16582709]
[1646412551811,0.89425832,40847.0,40846.0,0.16582709]
[1646412552411,0.71555998,40847.0,40846.0,0.16582709]
[1646412552714,0.6834018,40847.0,40846.0,0.16582709]
[1646412553111,0.55694182,40847.0,40846.0,0.16582709]
[1646412553311,0.25694182,40847.0,40846.0,0.16582709]
[1646412553716,0.65775131,40847.0,40846.0,0.16582709]
[1646412553954,0.25694182,40847.0,40846.0,0.16582709]
[1646412554256,0.005,40851.0,40846.0,0.16582709]
[1646412554257,0.52726123,40852.0,40846.0,0.56582709]
[1646412554456,0.40080125,40852.0,40846.0,0.26582709]
[1646412554654,0.40080125,40852.0,40847.0,0.061251]
[1646412554854,0.40080125,40850.0,40846.0,0.16582709]
[1646412555154,0.40080125,40849.0,40846.0,0.16582709]
[1646412555554,0.061263,40847.0,40846.0,0.16582709]
[1646412555757,0.061263,40847.0,40846.0,0.28834409]
[1646412556955,0.201263,40847.0,40846.0,0.28834409]
[1646412557802,0.061263,40847.0,40846.0,0.28834409]
[1646412558202,0.201263,40847.0,40846.0,0.28834409]
[1646412558406,0.18761887,40847.0,40846.0,0.28834409]
[1646412558603,0.32761887,40847.0,40846.0,0.28834409]
[1646412558802,0.72761887,40847.0,40846.0,0.16582709]
[1646412559202,0.72761887,40847.0,40846.0,0.13518845]
[1646412559403,0.74456069,40847.0,40846.0,0.13518845]
[1646412559607,1.89673028,40847.0,40846.0,0.13518845]
[1646412559803,1.49596069,40847.0,40846.0,0.13518845]
[1646412560003,0.74456069,40847.0,40846.0,0.13518845]
[1646412560203,1.49596069,40847.0,40846.0,0.13518845]
[1646412560404,1.36960482,40847.0,40846.0,0.13518845]
[1646412560604,0.74456069,40847.0,40846.0,0.13518845]
[1646412561005,0.61820482,40847.0,40846.0,0.13518845]
[1646412561305,1.49596069,40847.0,40846.0,0.13518845]
[1646412562353,1.89669901,40847.0,40846.0,0.13518845]
[1646412562952,1.49596069,40847.0,40846.0,0.13518845]
[1646412563354,0.84527588,40847.0,40846.0,0.13518845]
[1646412563556,0.44456069,40847.0,40846.0,0.13518845]
[1646412563857,0.22635587,40847.0,40846.0,0.13518845]
[1646412564058,0.061257,40850.0,40846.0,0.13518845]
[1646412564255,0.061257,40850.0,40848.0,0.26077799]
[1646412565057,0.46716097,40853.0,40847.0,0.26407047]
[1646412565316,0.46696719,40853.0,40847.0,0.061256]
[1646412565520,0.46716097,40853.0,40847.0,0.061256]
[1646412566018,0.46716097,40853.0,40847.0,0.33218271]
[1646412566219,0.50071519,40852.0,40846.0,0.13518845]
[1646412566419,0.52323919,40851.0,40846.0,0.13518845]
[1646412566820,0.1,40850.0,40846.0,0.13518845]
[1646412567621,0.50071519,40850.0,40846.0,0.13518845]
[1646412568020,0.44981519,40849.0,40846.0,0.13518845]
[1646412568222,0.1,40848.0,40846.0,0.13518845]
[1646412568420,0.061268,40847.0,40846.0,0.13518845]
[1646412569960,0.201268,40847.0,40846.0,0.13518845]
[1646412570164,1.311768,40847.0,40846.0,0.10442692]
[1646412570363,1.46759267,40847.0,40833.0,0.00019387]
[1646412570562,0.27244152,40835.0,40833.0,0.00019387]
[1646412570764,0.13543409,40834.0,40833.0,0.00019387]
[1646412571163,0.210384,40834.0,40833.0,0.00019387]
[1646412571360,0.210384,40834.0,40831.0,0.561282]
[1646412571560,0.210384,40834.0,40831.0,0.56147605]
[1646412571760,0.1491,40834.0,40831.0,0.68402905]
[1646412572161,0.1491,40834.0,40832.0,0.23976591]
[1646412572362,0.0491,40834.0,40832.0,0.122549]
[1646412573000,0.0491,40834.0,40832.0,0.30162999]
[1646412573203,0.0491,40834.0,40832.0,0.122549]
[1646412573401,0.0491,40834.0,40832.0,0.44561474]
[1646412573801,0.0491,40834.0,40832.0,0.122549]
[1646412574403,0.110379,40834.0,40832.0,0.122549]
[1646412574805,0.110379,40834.0,40832.0,0.061274]
[1646412575103,0.110379,40834.0,40831.0,0.62274706]
[1646412575104,0.0491,40834.0,40831.0,0.67274706]
[1646412575703,0.110379,40834.0,40831.0,0.67274706]
[1646412576104,0.110379,40834.0,40831.0,0.912553]
[1646412576305,0.46108992,40834.0,40831.0,0.912553]
[1646412576557,0.35071092,40833.0,40831.0,0.912553]
[1646412576956,0.35071092,40834.0,40831.0,0.973827]
[1646412577160,0.40138314,40835.0,40831.0,0.973827]
[1646412577357,0.40138314,40835.0,40832.0,0.05]
[1646412577358,0.05067222,40835.0,40832.0,0.05]
[1646412577555,0.40138314,40835.0,40832.0,0.05]
[1646412577957,0.05067222,40835.0,40832.0,0.05]
[1646412578356,0.05067222,40835.0,40831.0,0.973827]
[1646412578757,0.05067222,40835.0,40831.0,0.97402117]
[1646412579159,0.05067222,40835.0,40831.0,0.97132572]
[1646412579458,0.35071092,40837.0,40832.0,0.05]
[1646412579858,0.35071092,40837.0,40831.0,0.923827]
[1646412580062,0.006,40838.0,40832.0,0.00019383]
[1646412580063,0.17415647,40836.0,40832.0,0.00019383]
[1646412580304,0.3,40834.0,40831.0,0.78260405]
[1646412580503,0.02505647,40833.0,40831.0,0.78260405]
[1646412580705,0.12505647,40833.0,40831.0,0.78260405]
[1646412580908,0.02505647,40832.0,40831.0,0.78260405]
[1646412581107,0.02505647,40833.0,40831.0,0.78260405]
[1646412581910,0.02505647,40833.0,40831.0,0.84388705]
[1646412582109,0.35081112,40832.0,40831.0,0.84388705]
[1646412582313,0.45081112,40832.0,40831.0,0.84388705]
[1646412582510,0.35081112,40832.0,40831.0,0.89388705]
[1646412582710,0.80219145,40844.0,40831.0,0.94388705]
[1646412582711,0.35081112,40834.0,40831.0,0.94388705]
[1646412582911,0.35081112,40836.0,40831.0,0.94388705]
[1646412583209,0.002,40836.0,40835.0,0.32285385]
[1646412584462,0.1,40843.0,40837.0,0.061269]
[1646412584664,0.1,40843.0,40838.0,0.061269]
[1646412584866,0.10022278,40843.0,40838.0,0.061269]
[1646412585264,0.10022278,40843.0,40842.0,0.24390676]
[1646412585464,0.10022278,40843.0,40842.0,0.53169077]
[1646412585865,0.05079145,40844.0,40842.0,0.53169077]
[1646412586066,0.05079145,40844.0,40842.0,0.58169077]
[1646412586266,0.05344881,40843.0,40842.0,0.58169077]
[1646412587264,0.05344881,40843.0,40842.0,0.53169077]
[1646412588905,0.05344881,40843.0,40841.0,0.12251]
[1646412588906,0.05344881,40843.0,40841.0,0.17251]
[1646412589808,0.05344881,40843.0,40842.0,0.27688801]
[1646412590208,0.05344881,40843.0,40842.0,0.32688801]
[1646412590409,0.05344881,40843.0,40842.0,0.30715083]
[1646412590706,0.05344881,40843.0,40842.0,0.29215083]
[1646412591563,0.40083432,40851.0,40845.0,0.392775]
[1646412591764,0.3507708,40847.0,40846.0,0.368235]
[1646412591960,0.40083432,40854.0,40846.0,0.418235]
[1646412592162,0.40083432,40854.0,40848.0,0.122491]
[1646412592360,0.40083432,40854.0,40852.0,0.28394119]
[1646412592564,0.40083432,40853.0,40852.0,0.33394119]
[1646412592760,0.40083432,40854.0,40852.0,0.38394119]
[1646412592960,0.40083432,40855.0,40852.0,0.38394119]
[1646412593162,0.40083432,40854.0,40852.0,0.38394119]
[1646412593461,0.40083432,40854.0,40852.0,0.50643219]
[1646412593662,0.40083432,40854.0,40851.0,0.34697698]
[1646412593663,0.4,40853.0,40851.0,0.061247]
[1646412593868,0.4,40853.0,40837.0,0.18399003]
[1646412593869,0.02779959,40848.0,40837.0,0.00022303]
[1646412594062,0.35077107,40839.0,40837.0,0.22819103]
[1646412594261,0.38269753,40839.0,40837.0,0.061268]
[1646412594662,0.38269753,40839.0,40838.0,0.31031857]
[1646412594865,0.38269753,40839.0,40838.0,0.59127857]
[1646412595068,0.03192646,40839.0,40838.0,0.59127857]
[1646412595303,0.03067646,40839.0,40838.0,0.59127857]
[1646412595509,0.38144871,40839.0,40838.0,0.59127857]
[1646412595704,0.03067646,40839.0,40838.0,0.59127857]
[1646412596104,0.38144243,40839.0,40838.0,0.59127857]
[1646412596303,0.38144243,40839.0,40838.0,0.83127857]
[1646412596504,0.3814392,40839.0,40838.0,0.83127857]
[1646412596705,0.33131722,40839.0,40838.0,1.23127857]
[1646412596907,0.03067646,40839.0,40838.0,1.23127857]
[1646412597104,0.2858895,40842.0,40839.0,1.0]
[1646412597304,0.2858895,40842.0,40840.0,0.06871841]
[1646412597503,0.2858895,40842.0,40839.0,0.061254]
[1646412598308,0.00021358,40847.0,40843.0,0.02454]
[1646412598505,0.00021358,40847.0,40844.0,0.368235]
[1646412598705,0.00021358,40847.0,40843.0,0.644976]
[1646412598953,0.00021358,40847.0,40846.0,0.16135362]
[1646412599155,0.05848736,40848.0,40844.0,0.57421062]
[1646412599358,0.05848736,40848.0,40846.0,0.05]
[1646412599855,0.05848736,40848.0,40844.0,0.62421062]
[1646412600260,0.05848736,40848.0,40845.0,0.061246]
[1646412600856,0.05848736,40848.0,40845.0,0.05161599]
[1646412601661,0.05848736,40848.0,40846.0,0.20950139]
[1646412601856,0.05848736,40848.0,40846.0,0.25950139]
[1646412604126,0.35060192,40847.0,40846.0,0.20950139]
[1646412604925,0.35060192,40847.0,40845.0,0.05161599]
[1646412605628,0.4092966,40848.0,40845.0,0.05161599]
[1646412606225,0.4092966,40848.0,40845.0,0.30161599]
[1646412606226,0.35063263,40846.0,40845.0,0.30161599]
[1646412607263,0.02504471,40847.0,40845.0,0.25]
[1646412607564,0.87644471,40846.0,40845.0,0.25]
[1646412607765,0.17414471,40846.0,40845.0,0.25]
[1646412608565,0.07414471,40846.0,40845.0,0.25]
[1646412609064,0.18198653,40846.0,40845.0,0.25]
[1646412609264,0.18166326,40846.0,40845.0,0.25]
[1646412609667,0.93306326,40846.0,40845.0,0.25]
[1646412609866,1.43394448,40846.0,40845.0,0.18057911]
[1646412610068,1.54065965,40846.0,40845.0,0.18057911]
[1646412610316,0.78925965,40846.0,40845.0,0.18057911]
[1646412610518,0.68254448,40846.0,40845.0,0.18057911]
[1646412610724,0.68254448,40846.0,40845.0,0.1625212]
[1646412610725,1.03306326,40846.0,40845.0,0.1625212]
[1646412610917,1.43394448,40846.0,40845.0,0.04547788]
[1646412611118,1.4,40845.0,40832.0,0.1728]
[1646412611319,0.061285,40833.0,40832.0,0.1728]
[1646412611519,0.110385,40833.0,40831.0,0.5]
[1646412612121,0.46110275,40833.0,40831.0,0.561285]
[1646412612321,0.1,40832.0,40831.0,0.561285]
[1646412612520,0.1491,40832.0,40831.0,0.561285]
[1646412613621,0.0491,40832.0,40831.0,0.561285]
[1646412615158,0.0491,40832.0,40831.0,0.5608424]
[1646412616158,0.0491,40832.0,40831.0,0.8108424]
[1646412616559,0.0491,40832.0,40831.0,0.8608424]
[1646412616961,0.1,40834.0,40831.0,0.8608424]
[1646412617459,0.13556197,40835.0,40831.0,0.8608424]
[1646412618324,0.48127972,40835.0,40834.0,0.21778606]
[1646412618529,0.13056197,40835.0,40834.0,0.21778606]
[1646412618726,0.23843684,40835.0,40833.0,0.24954478]
[1646412618925,0.10787619,40834.0,40833.0,0.24954478]
[1646412619124,0.13056197,40835.0,40833.0,0.31397562]
[1646412619329,0.03056197,40835.0,40833.0,0.60905062]
[1646412619725,0.35071775,40838.0,40834.0,0.2073381]
[1646412620124,0.35071775,40838.0,40834.0,0.2686081]
[1646412620327,0.35071775,40838.0,40834.0,0.3298761]
[1646412620525,0.35071775,40838.0,40835.0,0.3]
[1646412620727,0.35071775,40840.0,40837.0,0.44262223]
[1646412620930,0.005,40841.0,40839.0,0.368235]
[1646412621131,0.03061887,40844.0,40841.0,0.20477225]
[1646412621327,0.03061887,40844.0,40842.0,0.05]
[1646412621564,0.38124085,40844.0,40843.0,0.31904545]
[1646412621762,0.38124085,40844.0,40843.0,0.28479527]
[1646412621964,0.38124085,40844.0,40843.0,0.57110761]
[1646412622562,0.38124085,40844.0,40843.0,0.28479527]
[1646412622764,0.44250485,40844.0,40843.0,0.28479527]
[1646412623365,0.44250485,40844.0,40842.0,0.111251]
[1646412623567,0.35062198,40843.0,40842.0,0.111251]
[1646412624367,0.35062198,40843.0,40842.0,0.3807426]
[1646412625510,0.44250685,40844.0,40842.0,0.3807426]
[1646412625710,0.35062198,40843.0,40842.0,0.4420036]
[1646412626104,0.35062198,40843.0,40842.0,0.6920036]
[1646412626505,0.35062198,40843.0,40842.0,0.97436577]
[1646412627110,0.38124085,40844.0,40842.0,0.97436577]
[1646412627508,0.35062198,40843.0,40842.0,0.361251]
[1646412627908,0.02504897,40843.0,40842.0,0.361251]
[1646412628108,0.03061887,40844.0,40842.0,0.361251]
[1646412628109,0.38130054,40844.0,40842.0,0.361251]
[1646412628508,0.35068167,40843.0,40842.0,0.64486325]
[1646412628708,0.38130054,40844.0,40842.0,0.64486325]
[1646412628965,0.38130054,40844.0,40842.0,0.64472225]
[1646412629567,0.35068167,40843.0,40842.0,0.36111]
[1646412629766,0.35068167,40843.0,40842.0,0.299859]
[1646412630366,0.02504955,40843.0,40842.0,0.25]
[1646412631170,0.39183155,40843.0,40842.0,0.25]
[1646412631571,0.18631655,40843.0,40842.0,0.25]
[1646412631768,0.18631655,40843.0,40842.0,0.22500001]
[1646412632807,0.08631655,40843.0,40842.0,0.22500001]
[1646412633310,0.18631655,40843.0,40842.0,0.22500001]
[1646412634508,0.08631655,40843.0,40842.0,0.22500001]
[1646412634708,0.83771655,40843.0,40842.0,0.22500001]
[1646412634909,0.88681655,40843.0,40842.0,0.22500001]
[1646412635108,0.98681655,40843.0,40842.0,0.22500001]
[1646412635509,1.43761757,40843.0,40842.0,0.22500001]
[1646412635709,1.544504,40843.0,40842.0,0.22500001]
[1646412635909,1.73555326,40843.0,40842.0,0.15549527]
[1646412636108,1.33475224,40843.0,40842.0,0.15549527]
[1646412636564,1.33475224,40843.0,40842.0,0.13392913]
[1646412636565,1.44262975,40843.0,40842.0,0.13392913]
[1646412636964,1.4,40842.0,40837.0,0.00020801]
[1646412637265,0.85927751,40838.0,40837.0,0.00020801]
[1646412637465,1.24552019,40838.0,40837.0,0.00020801]
[1646412637664,0.812691,40836.0,40831.0,0.5]
[1646412637865,0.812691,40836.0,40835.0,0.00020801]
[1646412638164,0.99472417,40836.0,40835.0,0.00020801]
[1646412638364,1.04472417,40836.0,40835.0,0.00020801]
[1646412638765,1.04472417,40836.0,40831.0,0.55]
[1646412638965,0.20891812,40835.0,40833.0,0.00020802]
[1646412639168,0.24332017,40834.0,40833.0,0.00020802]
[1646412639968,0.24332017,40834.0,40832.0,0.061281]
[1646412640207,0.02505566,40833.0,40832.0,0.061281]
[1646412640404,0.13293317,40833.0,40832.0,0.061281]
[1646412641405,0.10787751,40833.0,40832.0,0.061281]
[1646412645060,0.03054313,40834.0,40832.0,0.061281]
[1646412645258,0.09182513,40834.0,40832.0,0.061281]
[1646412645657,0.03054313,40834.0,40832.0,0.061281]
[1646412646359,0.03054313,40834.0,40832.0,0.311281]
[1646412648613,0.03054313,40834.0,40833.0,0.25987253]
[1646412648810,0.03054313,40834.0,40832.0,0.311281]
[1646412649010,0.03054313,40834.0,40833.0,0.05]
[1646412649210,0.03054313,40834.0,40832.0,0.311281]
[1646412650211,0.03054313,40834.0,40833.0,0.22877803]
[1646412651014,0.03054313,40834.0,40833.0,0.70820216]
[1646412651860,0.005,40837.0,40834.0,0.05528643]
[1646412652465,0.061261,40844.0,40834.0,0.05528643]
[1646412652664,0.061261,40844.0,40839.0,0.061262]
[1646412653061,0.061261,40844.0,40840.0,0.20611698]
[1646412654164,0.061261,40844.0,40840.0,0.25611698]
[1646412654969,0.061261,40844.0,40839.0,0.061262]
[1646412655209,0.061261,40844.0,40841.0,0.061262]
[1646412656411,0.061261,40844.0,40839.0,0.05]
[1646412656711,0.061261,40844.0,40838.0,0.172523]
[1646412657711,0.061261,40844.0,40838.0,0.233791]
[1646412657912,0.061261,40844.0,40838.0,0.172523]
[1646412658411,0.061261,40844.0,40838.0,0.122523]
[1646412659256,0.061261,40844.0,40841.0,0.2713535]
[1646412659457,0.03057704,40845.0,40838.0,0.172523]
[1646412659856,0.43145795,40845.0,40838.0,0.172523]
[1646412660356,0.43145795,40845.0,40839.0,0.122516]
[1646412660557,0.43145795,40845.0,40842.0,0.061259]
[1646412660757,0.11905287,40843.0,40842.0,0.111259]
[1646412661157,0.11905287,40843.0,40842.0,0.061259]
[1646412661158,0.16905287,40843.0,40842.0,0.061259]
[1646412661359,0.20696429,40843.0,40838.0,0.122523]
[1646412661558,0.40091098,40841.0,40838.0,0.12243155]
[1646412661757,0.06128,40840.0,40838.0,0.12243155]
[1646412661958,0.14,40839.0,40838.0,0.12243155]
[1646412662159,0.8005,40839.0,40837.0,0.00019574]